[Event "44th Chess Olympiad Open 2022"]
[Site "Chennai"]
[Date "2022.08.06"]
[Round "8.65"]
[White "Nissinen, Niilo Man"]
[Black "Germinal, Kemly"]
[Result "1-0"]
[WhiteElo "1693"]
[BlackElo "1997"]
[Annotator "NA RC"]
[PlyCount "113"]
[EventDate "2022.??.??"]
[TimeControl "60"]

1. e4 {[%emt 0:00:03]} e5 {[%emt 0:00:09]} 2. Nf3 {[%emt 0:00:06]} Nc6 {
[%emt 0:00:06]} 3. d4 {[%emt 0:00:05]} exd4 {[%emt 0:01:01]} 4. Nxd4 {[%emt 0:
00:00]} Bc5 {[%emt 0:00:19]} 5. Nb3 {[%emt 0:00:07]} Bb6 {[%emt 0:00:47]} 6.
Nc3 {[%emt 0:00:07]} d6 {[%emt 0:01:30]} 7. Qe2 {[%emt 0:00:18]} h6 {[%emt 0:
00:00]} 8. Be3 {[%emt 0:00:14]} Nf6 {[%emt 0:00:26]} 9. O-O-O {[%emt 0:00:23]}
Qe7 {[%emt 0:04:03]} 10. f3 {[%emt 0:01:38]} Be6 {[%emt 0:03:39]} 11. h3 {
[%emt 0:07:25]} Nh5 {[%emt 0:03:56]} 12. Rg1 {[%emt 0:06:13]} Nf4 {[%emt 0:00:
00]} 13. Qd2 {[%emt 0:02:14]} Bxe3 {[%emt 0:02:37]} 14. Qxe3 {[%emt 0:00:07]}
Qg5 {[%emt 0:01:27]} 15. Re1 {[%emt 0:06:59]} Ng6 {[%emt 0:11:59]} 16. g3 {
[%emt 0:07:35]} Qxe3+ {[%emt 0:00:32]} 17. Rxe3 {[%emt 0:00:08]} O-O-O {
[%emt 0:00:55]} 18. Nb5 {[%emt 0:10:51]} Rhe8 {[%emt 0:14:26]} 19. N5d4 {
[%emt 0:03:50]} Nxd4 {[%emt 0:03:11]} 20. Nxd4 {[%emt 0:00:07]} Bd7 {[%emt 0:
00:00]} 21. Kd2 {[%emt 0:11:10]} Re7 {[%emt 0:03:42]} 22. Bg2 {[%emt 0:02:19]}
Rde8 {[%emt 0:00:32]} 23. Rge1 {[%emt 0:00:55]} Ne5 {[%emt 0:00:58]} 24. b3 {
[%emt 0:01:30]} g6 {[%emt 0:00:56]} 25. c4 {[%emt 0:05:56]} a5 {[%emt 0:01:29]}
26. Ne2 {[%emt 0:02:34]} f5 {[%emt 0:06:51]} 27. Nc3 {[%emt 0:06:14]} c6 {
[%emt 0:04:35]} 28. exf5 {[%emt 0:03:07]} gxf5 {[%emt 0:00:33]} 29. f4 {
[%emt 0:01:31]} Ng6 {[%emt 0:00:10]} 30. Rxe7 {[%emt 0:02:01]} Rxe7 {[%emt 0:
00:00]} 31. Rxe7 {[%emt 0:00:13]} Nxe7 {[%emt 0:00:05]} 32. Bf3 {[%emt 0:00:24]
} Kd8 {[%emt 0:01:05]} 33. Ke3 {[%emt 0:00:47]} Ke8 {[%emt 0:02:50]} 34. g4 {
[%emt 0:04:24]} Kf7 {[%emt 0:00:19]} 35. g5 {[%emt 0:02:07]} hxg5 {[%emt 0:00:
00]} 36. fxg5 {[%emt 0:00:08]} Ng6 {[%emt 0:02:34]} 37. Bh5 {[%emt 0:02:35]}
f4+ {[%emt 0:00:29]} 38. Kf3 {[%emt 0:00:20]} Bxh3 {[%emt 0:01:24]} 39. Ne4 {
[%emt 0:04:10]} d5 {[%emt 0:00:38]} 40. cxd5 {[%emt 0:00:25]} cxd5 {[%emt 0:00:
00]} 41. Nd6+ {[%emt 0:30:41]} Kg7 {[%emt 0:30:07]} 42. Nxb7 {[%emt 0:06:54]}
Ne5+ {[%emt 0:00:23]} 43. Kxf4 {[%emt 0:00:41]} Nd3+ {[%emt 0:00:00]} 44. Kg3 {
[%emt 0:00:00]} Bf5 {[%emt 0:00:00]} 45. Nxa5 {[%emt 0:00:00]} Nc1 {[%emt 0:00:
00]} 46. b4 {[%emt 0:00:00]} Nxa2 {[%emt 0:00:00]} 47. b5 {[%emt 0:00:00]} Nc3
{[%emt 0:00:00]} 48. b6 {[%emt 0:00:00]} Ne4+ {[%emt 0:00:00]} 49. Kf4 {
[%emt 0:00:00]} Bc8 {[%emt 0:00:00]} 50. Bf3 {[%emt 0:00:00]} Nxg5 {[%emt 0:00:
00]} 51. Kxg5 {[%emt 0:00:00]} Kf7 {[%emt 0:00:00]} 52. Kf4 {[%emt 0:00:00]}
Ba6 {[%emt 0:07:09]} 53. Ke5 {[%emt 0:00:00]} d4 {[%emt 0:03:30]} 54. Kxd4 {
[%emt 0:00:00]} Ke6 {[%emt 0:00:14]} 55. Kc5 {[%emt 0:00:00]} Kd7 {[%emt 0:00:
00]} 56. Bg4+ {[%emt 0:00:00]} Kd8 {[%emt 0:00:10]} 57. Kd6 {[%emt 0:00:00]}
1-0

[Event "44th Chess Olympiad Open 2022"]
[Site "Chennai"]
[Date "2022.08.06"]
[Round "8.66"]
[White "Matoewi, Roger"]
[Black "Al Busaidi, Hamood"]
[Result "0-1"]
[WhiteElo "2015"]
[BlackElo "1743"]
[Annotator "NA RC"]
[PlyCount "88"]
[EventDate "2022.??.??"]
[TimeControl "60"]

1. Nf3 {[%emt 0:00:07]} c5 {[%emt 0:00:11]} 2. c4 {[%emt 0:00:08]} g6 {[%emt 0:
00:00]} 3. g3 {[%emt 0:00:05]} Bg7 {[%emt 0:00:05]} 4. Bg2 {[%emt 0:00:04]} Nc6
{[%emt 0:00:46]} 5. Nc3 {[%emt 0:00:03]} e5 {[%emt 0:02:24]} 6. d3 {[%emt 0:00:
00]} h6 {[%emt 0:00:34]} 7. h4 {[%emt 0:04:27]} d6 {[%emt 0:02:07]} 8. h5 {
[%emt 0:04:29]} g5 {[%emt 0:02:28]} 9. Bd2 {[%emt 0:00:00]} Bg4 {[%emt 0:08:40]
} 10. Nd5 {[%emt 0:00:00]} Nf6 {[%emt 0:12:26]} 11. Nxf6+ {[%emt 0:00:00]} Bxf6
{[%emt 0:00:48]} 12. Bc3 {[%emt 0:01:19]} O-O {[%emt 0:05:06]} 13. Qd2 {
[%emt 0:11:08]} d5 {[%emt 0:09:14]} 14. Nh2 {[%emt 0:07:26]} Be6 {[%emt 0:00:
00]} 15. cxd5 {[%emt 0:03:26]} Bxd5 {[%emt 0:00:07]} 16. Bxd5 {[%emt 0:00:09]}
Qxd5 {[%emt 0:00:08]} 17. e4 {[%emt 0:00:14]} Qe6 {[%emt 0:00:44]} 18. Qe2 {
[%emt 0:00:19]} b5 {[%emt 0:12:58]} 19. b3 {[%emt 0:03:27]} Bg7 {[%emt 0:10:55]
} 20. Ng4 {[%emt 0:22:59]} Nd4 {[%emt 0:09:15]} 21. Bxd4 {[%emt 0:01:18]} exd4
{[%emt 0:00:02]} 22. f3 {[%emt 0:07:33]} f5 {[%emt 0:01:04]} 23. Nf2 {[%emt 0:
00:00]} c4 {[%emt 0:02:52]} 24. g4 {[%emt 0:01:37]} fxg4 {[%emt 0:02:20]} 25.
Nxg4 {[%emt 0:01:21]} Be5 {[%emt 0:00:29]} 26. O-O {[%emt 0:01:44]} c3 {
[%emt 0:02:35]} 27. Rac1 {[%emt 0:01:04]} a5 {[%emt 0:01:11]} 28. Rc2 {[%emt 0:
00:00]} Rae8 {[%emt 0:00:39]} 29. Qg2 {[%emt 0:00:32]} Bf4 {[%emt 0:00:52]} 30.
Re2 {[%emt 0:00:22]} Kg7 {[%emt 0:03:40]} 31. e5 {[%emt 0:06:19]} Qf5 {[%emt 0:
00:00]} 32. Re4 {[%emt 0:02:10]} Rc8 {[%emt 0:00:51]} 33. Qc2 {[%emt 0:02:17]}
Rc6 {[%emt 0:04:40]} 34. Rxd4 {[%emt 0:03:44]} Bxe5 {[%emt 0:00:29]} 35. Re4 {
[%emt 0:01:02]} Bf4 {[%emt 0:01:01]} 36. d4 {[%emt 0:01:34]} Rc7 {[%emt 0:00:
00]} 37. Rfe1 {[%emt 0:06:23]} Rff7 {[%emt 0:00:23]} 38. d5 {[%emt 0:01:05]}
Bd2 {[%emt 0:01:12]} 39. Rf1 {[%emt 0:00:50]} Rce7 {[%emt 0:00:40]} 40. Nh2 {
[%emt 0:01:53]} Be3+ {[%emt 0:00:26]} 41. Kg2 {[%emt 0:32:53]} Rxe4 {[%emt 0:
00:00]} 42. fxe4 {[%emt 0:00:59]} Qf2+ {[%emt 0:00:00]} 43. Rxf2 {[%emt 0:00:
00]} Rxf2+ {[%emt 0:00:00]} 44. Qxf2 {[%emt 0:00:00]} Bxf2 {[%emt 0:00:00]} 0-1

[Event "44th Chess Olympiad Open 2022"]
[Site "Chennai"]
[Date "2022.08.06"]
[Round "8.66"]
[White "Giasi, Viresh"]
[Black "Salim Mohammed, Salim Al Amri"]
[Result "1/2-1/2"]
[WhiteElo "2006"]
[BlackElo "1917"]
[Annotator "NA RC"]
[PlyCount "125"]
[EventDate "2022.??.??"]
[TimeControl "60"]

1. e4 {[%emt 0:00:17]} c5 {[%emt 0:00:06]} 2. Nf3 {[%emt 0:00:04]} Nc6 {
[%emt 0:00:05]} 3. d4 {[%emt 0:02:20]} cxd4 {[%emt 0:00:10]} 4. Nxd4 {[%emt 0:
00:00]} g6 {[%emt 0:00:19]} 5. Nxc6 {[%emt 0:02:27]} bxc6 {[%emt 0:00:27]} 6.
Qd4 {[%emt 0:04:40]} Nf6 {[%emt 0:00:18]} 7. e5 {[%emt 0:06:10]} Ng8 {[%emt 0:
00:00]} 8. Bc4 {[%emt 0:13:47]} Bg7 {[%emt 0:01:48]} 9. O-O {[%emt 0:00:54]} d5
{[%emt 0:03:48]} 10. Bd3 {[%emt 0:02:59]} Qc7 {[%emt 0:03:50]} 11. f4 {[%emt 0:
00:00]} e6 {[%emt 0:00:30]} 12. Be3 {[%emt 0:03:22]} h5 {[%emt 0:00:34]} 13. b4
{[%emt 0:03:35]} Nh6 {[%emt 0:00:47]} 14. Qc5 {[%emt 0:01:27]} Bf8 {[%emt 0:00:
00]} 15. Qc3 {[%emt 0:00:02]} Nf5 {[%emt 0:03:27]} 16. Bc5 {[%emt 0:00:57]}
Bxc5+ {[%emt 0:03:42]} 17. Qxc5 {[%emt 0:02:04]} Qb6 {[%emt 0:00:03]} 18. Bxf5
{[%emt 0:00:28]} Qxc5+ {[%emt 0:00:20]} 19. bxc5 {[%emt 0:00:02]} gxf5 {
[%emt 0:00:13]} 20. Nd2 {[%emt 0:00:19]} Ba6 {[%emt 0:00:32]} 21. Rf3 {[%emt 0:
00:00]} Ke7 {[%emt 0:05:56]} 22. Rb1 {[%emt 0:00:59]} Rhb8 {[%emt 0:14:10]} 23.
Rxb8 {[%emt 0:00:57]} Rxb8 {[%emt 0:00:42]} 24. Ra3 {[%emt 0:00:03]} Be2 {
[%emt 0:01:18]} 25. Rxa7+ {[%emt 0:00:03]} Kf8 {[%emt 0:00:31]} 26. Nb3 {
[%emt 0:06:18]} Rb4 {[%emt 0:00:49]} 27. g3 {[%emt 0:03:39]} Rc4 {[%emt 0:00:
00]} 28. a4 {[%emt 0:05:45]} Bg4 {[%emt 0:00:25]} 29. a5 {[%emt 0:06:22]} Rxc2
{[%emt 0:00:23]} 30. a6 {[%emt 0:01:25]} Bh3 {[%emt 0:00:20]} 31. Rb7 {[%emt 0:
00:00]} Rg2+ {[%emt 0:01:22]} 32. Kf1 {[%emt 0:00:58]} Ra2+ {[%emt 0:00:29]}
33. Ke1 {[%emt 0:00:01]} Rxa6 {[%emt 0:00:33]} 34. Rb6 {[%emt 0:00:31]} Ra3 {
[%emt 0:06:18]} 35. Nd4 {[%emt 0:03:27]} Ra1+ {[%emt 0:00:43]} 36. Kd2 {
[%emt 0:00:36]} Ra2+ {[%emt 0:01:43]} 37. Kc3 {[%emt 0:01:24]} Rxh2 {[%emt 0:
00:00]} 38. Nxc6 {[%emt 0:00:05]} Rg2 {[%emt 0:00:22]} 39. Rb8+ {[%emt 0:00:05]
} Kg7 {[%emt 0:00:10]} 40. Ne7 {[%emt 0:04:55]} Rxg3+ {[%emt 0:02:26]} 41. Kd4
{[%emt 0:30:03]} Rf3 {[%emt 0:30:05]} 42. c6 {[%emt 0:00:04]} Rxf4+ {[%emt 0:
00:00]} 43. Kc5 {[%emt 0:01:42]} Rc4+ {[%emt 0:03:25]} 44. Kd6 {[%emt 0:00:05]}
f4 {[%emt 0:00:36]} 45. c7 {[%emt 0:02:09]} Rxc7 {[%emt 0:00:04]} 46. Kxc7 {
[%emt 0:00:02]} f3 {[%emt 0:00:31]} 47. Rb2 {[%emt 0:00:52]} Bg2 {[%emt 0:00:
00]} 48. Kd6 {[%emt 0:04:59]} h4 {[%emt 0:01:37]} 49. Rb4 {[%emt 0:00:04]} Kh6
{[%emt 0:03:05]} 50. Rxh4+ {[%emt 0:03:17]} Kg5 {[%emt 0:00:23]} 51. Rh7 {
[%emt 0:00:05]} d4 {[%emt 0:02:39]} 52. Rg7+ {[%emt 0:04:49]} Kh6 {[%emt 0:00:
00]} 53. Rg4 {[%emt 0:00:59]} Kh5 {[%emt 0:07:56]} 54. Rxd4 {[%emt 0:00:02]} f2
{[%emt 0:00:01]} 55. Rf4 {[%emt 0:00:10]} f1=Q {[%emt 0:00:18]} 56. Rxf1 {
[%emt 0:00:03]} Bxf1 {[%emt 0:00:02]} 57. Ng8 {[%emt 0:01:27]} Kg6 {[%emt 0:00:
00]} 58. Nf6 {[%emt 0:00:04]} Bd3 {[%emt 0:01:22]} 59. Ng8 {[%emt 0:00:25]} Bc4
{[%emt 0:00:32]} 60. Nf6 {[%emt 0:00:10]} Kf5 {[%emt 0:00:36]} 61. Ng8 {
[%emt 0:00:20]} Kg6 {[%emt 0:01:40]} 62. Nf6 {[%emt 0:00:13]} Bd3 {[%emt 0:00:
00]} 63. Ne8 {[%emt 0:00:08]} 1/2-1/2

[Event "44th Chess Olympiad Open 2022"]
[Site "Chennai"]
[Date "2022.08.06"]
[Round "8.66"]
[White "Al Maashani, Amer"]
[Black "Gajadin, Dewperkash"]
[Result "1-0"]
[WhiteElo "1947"]
[BlackElo "1990"]
[Annotator "NA RC"]
[PlyCount "89"]
[EventDate "2022.??.??"]
[TimeControl "60"]

1. d4 {[%emt 0:00:06]} Nf6 {[%emt 0:00:11]} 2. Bg5 {[%emt 0:00:16]} e6 {
[%emt 0:00:18]} 3. Nd2 {[%emt 0:00:14]} d5 {[%emt 0:01:33]} 4. e3 {[%emt 0:00:
00]} h6 {[%emt 0:00:21]} 5. Bh4 {[%emt 0:00:16]} Be7 {[%emt 0:04:09]} 6. Bd3 {
[%emt 0:00:19]} O-O {[%emt 0:06:57]} 7. Ngf3 {[%emt 0:02:44]} Nbd7 {[%emt 0:00:
00]} 8. O-O {[%emt 0:04:19]} b6 {[%emt 0:02:06]} 9. Re1 {[%emt 0:20:44]} Bb7 {
[%emt 0:06:26]} 10. e4 {[%emt 0:02:17]} dxe4 {[%emt 0:00:50]} 11. Nxe4 {
[%emt 0:00:08]} Nxe4 {[%emt 0:07:16]} 12. Bxe4 {[%emt 0:02:15]} Bxe4 {[%emt 0:
00:00]} 13. Rxe4 {[%emt 0:00:03]} Bxh4 {[%emt 0:08:27]} 14. Rxh4 {[%emt 0:00:
00]} Nf6 {[%emt 0:05:50]} 15. Qe2 {[%emt 0:04:23]} Qd5 {[%emt 0:07:16]} 16. Ne5
{[%emt 0:14:41]} Rad8 {[%emt 0:09:43]} 17. c4 {[%emt 0:06:32]} Qd6 {[%emt 0:00:
00]} 18. Re1 {[%emt 0:09:53]} c5 {[%emt 0:02:14]} 19. dxc5 {[%emt 0:02:15]}
Qxc5 {[%emt 0:01:31]} 20. b4 {[%emt 0:03:23]} Qd6 {[%emt 0:04:26]} 21. Rh3 {
[%emt 0:01:03]} Qd2 {[%emt 0:01:10]} 22. Kf1 {[%emt 0:01:42]} Rd4 {[%emt 0:00:
00]} 23. Rd3 {[%emt 0:02:33]} Rxd3 {[%emt 0:00:24]} 24. Nxd3 {[%emt 0:00:12]}
Qg5 {[%emt 0:02:11]} 25. h3 {[%emt 0:03:58]} Rd8 {[%emt 0:00:45]} 26. Qe3 {
[%emt 0:02:25]} Qf5 {[%emt 0:00:55]} 27. Ne5 {[%emt 0:01:47]} Qc2 {[%emt 0:00:
00]} 28. c5 {[%emt 0:08:34]} bxc5 {[%emt 0:03:13]} 29. bxc5 {[%emt 0:00:09]}
Rc8 {[%emt 0:02:17]} 30. c6 {[%emt 0:01:09]} a5 {[%emt 0:01:20]} 31. Qa7 {
[%emt 0:00:56]} Rf8 {[%emt 0:01:00]} 32. Qxa5 {[%emt 0:01:28]} Nd5 {[%emt 0:00:
00]} 33. Qa3 {[%emt 0:01:43]} f6 {[%emt 0:01:02]} 34. Rc1 {[%emt 0:00:45]} Qd2
{[%emt 0:00:52]} 35. Nf3 {[%emt 0:01:51]} Qf4 {[%emt 0:00:33]} 36. g3 {[%emt 0:
00:00]} Qf5 {[%emt 0:00:19]} 37. Kg2 {[%emt 0:00:19]} Rc8 {[%emt 0:00:24]} 38.
Qd6 {[%emt 0:00:43]} Rc7 {[%emt 0:01:02]} 39. Rc5 {[%emt 0:01:16]} Ra7 {
[%emt 0:00:45]} 40. Qb8+ {[%emt 0:00:42]} Kh7 {[%emt 0:00:28]} 41. Qxa7 {
[%emt 0:30:21]} Qb1 {[%emt 0:30:33]} 42. Rxd5 {[%emt 0:00:18]} exd5 {[%emt 0:
00:00]} 43. c7 {[%emt 0:00:13]} Qc1 {[%emt 0:00:00]} 44. Qb8 {[%emt 0:00:00]}
d4 {[%emt 0:00:00]} 45. c8=Q {[%emt 0:00:00]} 1-0

[Event "44th Chess Olympiad Open 2022"]
[Site "Chennai"]
[Date "2022.08.06"]
[Round "8.66"]
[White "Salim Issa, Ali Shamas"]
[Black "Sanches, Casanova Romario"]
[Result "1/2-1/2"]
[WhiteElo "1851"]
[BlackElo "2066"]
[Annotator "NA RC"]
[PlyCount "102"]
[EventDate "2022.??.??"]
[TimeControl "60"]

1. d4 {[%emt 0:00:05]} g6 {[%emt 0:00:10]} 2. Nf3 {[%emt 0:00:23]} Bg7 {
[%emt 0:00:04]} 3. e4 {[%emt 0:01:19]} d6 {[%emt 0:00:06]} 4. Bc4 {[%emt 0:00:
00]} Nf6 {[%emt 0:00:19]} 5. Nc3 {[%emt 0:00:51]} O-O {[%emt 0:00:07]} 6. h3 {
[%emt 0:00:12]} c6 {[%emt 0:03:18]} 7. Bg5 {[%emt 0:01:41]} h6 {[%emt 0:10:02]}
8. Be3 {[%emt 0:03:19]} b5 {[%emt 0:08:35]} 9. Bd3 {[%emt 0:03:23]} Bb7 {
[%emt 0:01:23]} 10. Qd2 {[%emt 0:01:37]} Kh7 {[%emt 0:00:07]} 11. e5 {[%emt 0:
00:00]} dxe5 {[%emt 0:08:46]} 12. dxe5 {[%emt 0:00:11]} Nd5 {[%emt 0:02:31]}
13. Ne4 {[%emt 0:01:08]} Nxe3 {[%emt 0:02:15]} 14. Qxe3 {[%emt 0:00:25]} Na6 {
[%emt 0:26:47]} 15. a3 {[%emt 0:00:38]} Qb6 {[%emt 0:04:50]} 16. Qf4 {[%emt 0:
00:00]} Nc7 {[%emt 0:00:04]} 17. O-O {[%emt 0:00:46]} Ne6 {[%emt 0:00:53]} 18.
Qh4 {[%emt 0:00:57]} Qc7 {[%emt 0:02:44]} 19. Rfe1 {[%emt 0:02:27]} Kg8 {
[%emt 0:01:13]} 20. c3 {[%emt 0:00:50]} Rad8 {[%emt 0:00:34]} 21. Bc2 {[%emt 0:
00:00]} c5 {[%emt 0:00:30]} 22. Rac1 {[%emt 0:01:21]} Rd7 {[%emt 0:03:30]} 23.
b4 {[%emt 0:07:07]} c4 {[%emt 0:00:34]} 24. a4 {[%emt 0:00:50]} a6 {[%emt 0:00:
00]} 25. axb5 {[%emt 0:00:19]} axb5 {[%emt 0:00:01]} 26. Ra1 {[%emt 0:00:12]}
Ra8 {[%emt 0:04:07]} 27. Rxa8+ {[%emt 0:00:19]} Bxa8 {[%emt 0:00:01]} 28. Ra1 {
[%emt 0:00:19]} Bc6 {[%emt 0:00:14]} 29. Qg3 {[%emt 0:05:57]} Rd5 {[%emt 0:00:
00]} 30. Ra6 {[%emt 0:02:15]} Qb7 {[%emt 0:01:58]} 31. Ra1 {[%emt 0:00:50]} Rd8
{[%emt 0:00:45]} 32. Nfd2 {[%emt 0:02:29]} Ra8 {[%emt 0:01:27]} 33. Rd1 {
[%emt 0:02:42]} Ra2 {[%emt 0:08:22]} 34. Bb1 {[%emt 0:00:44]} Rb2 {[%emt 0:00:
00]} 35. Nc5 {[%emt 0:04:46]} Nxc5 {[%emt 0:00:16]} 36. bxc5 {[%emt 0:00:24]}
Qc7 {[%emt 0:00:58]} 37. f4 {[%emt 0:01:57]} Qd7 {[%emt 0:03:01]} 38. Qe1 {
[%emt 0:02:02]} Qa7 {[%emt 0:00:50]} 39. Qe3 {[%emt 0:00:41]} e6 {[%emt 0:00:
00]} 40. Be4 {[%emt 0:02:31]} Bf8 {[%emt 0:01:35]} 41. Nf3 {[%emt 0:30:42]}
Bxc5 {[%emt 0:32:55]} 42. Rd8+ {[%emt 0:00:49]} Kg7 {[%emt 0:00:20]} 43. Nd4 {
[%emt 0:00:08]} Bxe4 {[%emt 0:00:00]} 44. Qxe4 {[%emt 0:00:00]} Rd2 {[%emt 0:
00:00]} 45. Kh2 {[%emt 0:00:00]} Bxd4 {[%emt 0:00:00]} 46. cxd4 {[%emt 0:00:00]
} c3 {[%emt 0:00:00]} 47. f5 {[%emt 0:00:00]} exf5 {[%emt 0:00:00]} 48. Qc6 {
[%emt 0:00:00]} Qe7 {[%emt 0:00:00]} 49. Qc8 {[%emt 0:00:00]} Rxg2+ {[%emt 0:
00:00]} 50. Kxg2 {[%emt 0:00:00]} Qg5+ {[%emt 0:00:01]} 51. Kf3 {[%emt 0:00:00]
} Qh5+ {[%emt 0:00:02]} 1/2-1/2

[Event "44th Chess Olympiad Open 2022"]
[Site "Chennai"]
[Date "2022.08.06"]
[Round "8.67"]
[White "Aziz, Husain"]
[Black "Martyr, Reginald"]
[Result "1-0"]
[WhiteElo "2380"]
[BlackElo "2194"]
[Annotator "TA"]
[PlyCount "105"]
[EventDate "2022.??.??"]
[TimeControl "60"]

{[%evp 18,105,43,42,48,44,43,54,54,17,14,20,23,21,12,7,6,0,0,-190,-208,-270,-3,
0,0,0,0,-11,95,86,94,88,111,75,77,77,78,79,82,87,87,68,95,94,112,97,110,110,
103,103,112,112,158,144,152,152,261,268,268,268,268,268,268,261,252,225,247,
239,232,229,302,284,259,253,245,245,337,254,535,552,695,672,961,684,1108,1034,
1571,0,830,758]} 1. e4 {[%emt 0:00:10]} e6 {[%emt 0:00:21]} 2. d4 {[%emt 0:00:
00]} d5 {[%emt 0:00:11]} 3. Nd2 {[%emt 0:00:27]} c5 {[%emt 0:00:33]} 4. Ngf3 {
[%emt 0:01:25]} cxd4 {[%emt 0:00:32]} 5. exd5 {[%emt 0:06:13]} Qxd5 {[%emt 0:
00:00]} 6. Bc4 {[%emt 0:00:10]} Qd8 {[%emt 0:00:24]} 7. O-O {[%emt 0:00:27]
[%cal Yh1f1,Yf1d1,Yd1d4,Yd4h4]} Nf6 {[%emt 0:00:31]} 8. Nb3 {[%emt 0:00:00]}
Nc6 {[%emt 0:00:30]} 9. Qe2 {[%emt 0:04:43]} Bd6 {[%emt 0:15:38]} 10. Rd1 {
[%emt 0:01:00]} Qc7 {[%emt 0:04:00] C07: French Tarrasch: 3...c5, 4 Ngf3 and 4
exd5 Qxd5.} 11. Nbxd4 {[%emt 0:10:02]} Nxd4 {[%emt 0:00:20]} 12. Rxd4 {[%emt 0:
00:12]} O-O {[%emt 0:16:19] White is slightly better.} 13. Bg5 {[%emt 0:01:31]}
e5 {[%emt 0:02:37]} 14. Rh4 {[%emt 0:10:39] Bxf6 is the strong threat.} Bf5 {
[%emt 0:00:37]} 15. Bxf6 {[%emt 0:02:37]} gxf6 {[%emt 0:00:06][%cal Yg7f6,
Yf6f5]} 16. Bd3 {[%emt 0:07:55]} Bg6 {[%emt 0:02:09]} 17. Rc4 {[%emt 0:06:55]}
Qb6 {[%emt 0:25:46] aiming for ...f5.} 18. b3 $2 {[%emt 0:00:00] [#]} (18. Nh4
$11 {and White has nothing to worry.}) 18... f5 $146 {[%emt 0:06:14]} ({
Predecessor:} 18... Rad8 19. Nh4 Rfe8 20. Be4 Bc5 21. Rf1 Rd4 22. Nf5 Rxc4 23.
Qxc4 Rd8 24. Qe2 Qb4 {1-0 (49) Sanal,V (2601)-Artemenko,O (2246) Chess.com INT
2022}) 19. Nxe5 {[%emt 0:16:03] Strongly threatening Nd7.} Rfe8 $2 {[%emt 0:01:
39]} (19... Rae8 $19 20. Nd7 Qd8 $1 21. Nxf8 Rxe2 22. Bxe2 Qxf8) 20. Nd7 $36 {
[%emt 0:00:24] White has some pressure.} Bxh2+ $1 {[%emt 0:08:41]} (20... Qd8
$2 21. Qxe8+ $3 Qxe8 22. Nf6+ Kf8 23. Nxe8 $18) 21. Kh1 {[%emt 0:01:13][%cal
Yg1h1,Yh1h2,Yh2g3]} Qd6 {[%emt 0:00:09]} (21... Rxe2 $2 22. Nxb6 axb6 23. Bxe2
$18) 22. Qf3 {[%emt 0:00:00][%csl Yb7,Yf5]} Re7 {[%emt 0:01:35] [#]} ({Resist} 
22... Qxd7 23. Kxh2 Rad8 24. a4 $14) (22... Rad8 $1 $11 {keeps the balance.})
23. Rd1 $1 {[%emt 0:00:00] White is more active.} Qxd7 {[%emt 0:05:03]} (23...
Rxd7 24. Be2) 24. Kxh2 {[%emt 0:00:19]} Qd6+ {[%emt 0:00:59]} 25. Qf4 {[%emt 0:
01:03]} Rd8 {[%emt 0:01:44]} 26. a4 {[%emt 0:00:24]} Kg7 {[%emt 0:00:53]} 27.
Rh1 {[%emt 0:00:00]} (27. Kg3 {feels hotter.} Bh5 28. Qxd6 Rxd6 29. f3) 27...
Qxf4+ {[%emt 0:01:14]} 28. Rxf4 {[%emt 0:00:02]} Rd5 {[%emt 0:00:33]} 29. Kg3 {
[%emt 0:03:51]} (29. g3 {is more complex.} Kf6 30. Kg2 Kg5 31. Rhh4) 29... Rde5
{[%emt 0:00:18]} 30. Kf3 {[%emt 0:02:16]} b6 {[%emt 0:00:23]} 31. Rhh4 {
[%emt 0:01:07]} Kf8 {[%emt 0:00:21]} 32. Rd4 {[%emt 0:00:35]} Kg7 {[%emt 0:00:
00]} 33. Rd6 {[%emt 0:01:48]} Rc5 {[%emt 0:00:51]} 34. Rhd4 {[%emt 0:03:34]}
Rce5 {[%emt 0:01:38]} (34... f4 $142) 35. Rd7 {[%emt 0:01:25]} Kf6 {[%emt 0:00:
00]} 36. Kf4 {[%emt 0:01:05]} Rxd7 {[%emt 0:01:23]} (36... Re1 $16 37. R4d6+
R1e6) 37. Rxd7 $16 {[%emt 0:00:03] Endgame KRB-KRB} a5 {[%emt 0:00:00]} 38.
Rd6+ {[%emt 0:03:45]} Re6 {[%emt 0:00:00]} 39. Rd5 {[%emt 0:00:17]} Rc6 {
[%emt 0:00:26]} 40. f3 {[%emt 0:03:19]} (40. Bxf5 Rc3 $16) 40... Ke6 {[%emt 0:
00:38]} 41. Re5+ {[%emt 0:32:19]} Kd6 {[%emt 0:30:52] [#]} 42. Rb5 $1 {[%emt 0:
00:00]} ({Weaker is} 42. Bxf5 Bxf5 43. Rxf5 Rxc2 $16) 42... Ke6 {[%emt 0:00:00]
} 43. g3 {[%emt 0:00:00][%cal Yg2g3,Yg3g4]} f6 {[%emt 0:00:00] [#]} 44. c4 $1 {
[%emt 0:00:00]} ({Not} 44. Bxf5+ Bxf5 45. Rxf5 Rxc2 $14) 44... Rd6 {[%emt 0:00:
00]} 45. Bxf5+ {[%emt 0:00:00]} Ke7 {[%emt 0:00:00]} 46. Be4 {[%emt 0:00:00]}
Re6 {[%emt 0:00:00]} 47. g4 {[%emt 0:00:00] Black must now prevent c5.} Bxe4 $2
{[%emt 0:00:00]} (47... Be8 {might work better.}) 48. fxe4 $18 {[%emt 0:00:00]
KR-KR} Rc6 {[%emt 0:00:00]} 49. Rh5 {[%emt 0:00:00]} Kd6 {[%emt 0:00:00]} 50.
Rxh7 {[%emt 0:00:00] Hoping for Kf5.} Kc5 {[%emt 0:00:00]} 51. Rh5+ {[%emt 0:
00:00]} Kd4 {[%emt 0:00:00]} 52. Rd5+ {[%emt 0:00:00]} Kc3 {[%emt 0:00:00]} 53.
Rb5 {[%emt 0:00:00] White used his chance. Weighted Error Value: White=0.33/
Black=0.38} 1-0